[Event "DVM U10 2024"]
[Site "Duesseldorf"]
[Date "2024.12.28"]
[Round "6"]
[White "Horn, Philipp"]
[Black "Elli, Emeric"]
[Result "0-1"]
[ECO "C47"]
[WhiteElo "988"]
[BlackElo "1574"]
[Annotator "NA RC"]
[PlyCount "74"]
[EventDate "2024.12.23"]
[EventType "team-tourn"]
[EventRounds "7"]
[EventCountry "GER"]
[SourceTitle "playchess.com"]
[Source "ChessBase"]
[SourceQuality "1"]
[TimeControl "3300+5"]

1. e4 {[%emt 0:00:01]} e5 {[%emt 0:00:01]} 2. Nf3 {[%emt 0:00:07]} Nc6 {[%emt 0:00:06]} 3. d4 {[%emt 0:00:03]} exd4 {[%emt 0:00:06]} 4. Nxd4 {[%emt 0:00:07]} Nf6 {[%emt 0:00:10]} 5. Nc3 {[%emt 0:00:07]} Bc5 {[%emt 0:00:09]} 6. Nxc6 {[%emt 0:00:41]} bxc6 {[%emt 0:00:12]} 7. Bd3 {[%emt 0:00:07]} O-O {[%emt 0:00:40]} 8. O-O {[%emt 0:00:57]} h6 {[%emt 0:00:31]} 9. Bf4 {[%emt 0:01:32]} d6 {[%emt 0:00:32]} 10. Re1 {[%emt 0:01:11]} Ng4 {[%emt 0:01:29]} 11. Be3 {[%emt 0:02:58]} Bxe3 {[%emt 0:01:03]} 12. fxe3 {[%emt 0:00:23]} Qh4 {[%emt 0:01:02]} 13. Qf3 {[%emt 0:05:20]} Qxh2+ {[%emt 0:00:49]} 14. Kf1 {[%emt 0:00:28]} Qh5 {[%emt 0:00:27]} 15. Ke2 {[%emt 0:03:39]} Nf6 {[%emt 0:00:18]} 16. Qxh5 {[%emt 0:01:08]} Nxh5 {[%emt 0:00:06]} 17. Kd2 {[%emt 0:01:43]} Nf6 {[%emt 0:02:06]} 18. Bc4 {[%emt 0:02:23]} Ng4 {[%emt 0:01:02]} 19. Be2 {[%emt 0:02:28]} Ne5 {[%emt 0:00:10]} 20. Rg1 {[%emt 0:01:37]} Bg4 {[%emt 0:01:12]} 21. Bxg4 {[%emt 0:00:24]} Nxg4 {[%emt 0:00:06]} 22. Ke2 {[%emt 0:01:43]} Ne5 {[%emt 0:00:17]} 23. g4 {[%emt 0:00:14]} f6 {[%emt 0:00:15]} 24. Nd1 {[%emt 0:01:38]} d5 {[%emt 0:01:02]} 25. exd5 {[%emt 0:02:26]} cxd5 {[%emt 0:00:04]} 26. Nf2 {[%emt 0:01:16]} Rab8 {[%emt 0:00:49]} 27. b3 {[%emt 0:00:11]} Rfe8 {[%emt 0:00:14]} 28. Rac1 {[%emt 0:00:47]} Nc6 {[%emt 0:00:46]} 29. c3 {[%emt 0:03:17]} Re7 {[%emt 0:00:35]} 30. Kd2 {[%emt 0:01:08]} Rbe8 {[%emt 0:00:21]} 31. Nd1 {[%emt 0:00:29]} Na5 {[%emt 0:01:09]} 32. Kd3 {[%emt 0:00:57]} c5 {[%emt 0:00:45]} 33. b4 {[%emt 0:01:35]} cxb4 {[%emt 0:00:10]} 34. cxb4 {[%emt 0:00:09]} Nc4 {[%emt 0:00:18]} 35. Rg3 {[%emt 0:00:31]} Rb8 {[%emt 0:01:44]} 36. Rb1 {[%emt 0:00:49]} Reb7 {[%emt 0:01:46]} 37. Kc3 {[%emt 0:00:25]} a5 {[%emt 0:00:41]} 0-1

[Event "DVM U10 2024"]
[Site "Duesseldorf"]
[Date "2024.12.28"]
[Round "6"]
[White "Kolesnikoff, Christophe"]
[Black "Tolle, Jonathan"]
[Result "1/2-1/2"]
[ECO "D04"]
[WhiteElo "980"]
[BlackElo "1149"]
[Annotator "NA RC"]
[PlyCount "106"]
[EventDate "2024.12.23"]
[EventType "team-tourn"]
[EventRounds "7"]
[EventCountry "GER"]
[SourceTitle "playchess.com"]
[Source "ChessBase"]
[SourceQuality "1"]
[TimeControl "3300+5"]

1. d4 {[%emt 0:00:16]} d5 {[%emt 0:00:03]} 2. Nf3 {[%emt 0:00:06]} Bg4 {[%emt 0:00:05]} 3. e3 {[%emt 0:00:48]} Nf6 {[%emt 0:00:21]} 4. g3 {[%emt 0:00:07]} e6 {[%emt 0:00:18]} 5. Bg2 {[%emt 0:00:17]} Bd6 {[%emt 0:00:11]} 6. O-O {[%emt 0:00:11]} O-O {[%emt 0:00:07]} 7. c4 {[%emt 0:00:10]} Nbd7 {[%emt 0:02:03]} 8. Nbd2 {[%emt 0:00:23]} Re8 {[%emt 0:01:02]} 9. Re1 {[%emt 0:00:22]} Ne4 {[%emt 0:02:14]} 10. Qc2 {[%emt 0:00:25]} Nef6 {[%emt 0:02:23]} 11. e4 {[%emt 0:00:16]} dxe4 {[%emt 0:04:42]} 12. Nxe4 {[%emt 0:00:06]} Bf5 {[%emt 0:00:43]} 13. Nxf6+ {[%emt 0:02:20]} Qxf6 {[%emt 0:00:21]} 14. Qc3 {[%emt 0:00:57]} h6 {[%emt 0:00:40]} 15. Be3 {[%emt 0:00:33]} Bg4 {[%emt 0:03:25]} 16. Bd2 {[%emt 0:01:18]} e5 {[%emt 0:03:46]} 17. dxe5 {[%emt 0:00:52]} Nxe5 {[%emt 0:00:22]} 18. Nxe5 {[%emt 0:00:53]} Bxe5 {[%emt 0:00:12]} 19. Qb4 {[%emt 0:02:40]} Bf3 {[%emt 0:02:35]} 20. Bxf3 {[%emt 0:01:21]} Qxf3 {[%emt 0:00:10]} 21. Re3 {[%emt 0:01:04]} Qc6 {[%emt 0:01:29]} 22. Rae1 {[%emt 0:00:22]} Bd6 {[%emt 0:00:35]} 23. Rxe8+ {[%emt 0:00:51]} Rxe8 {[%emt 0:00:12]} 24. Rxe8+ {[%emt 0:01:22]} Qxe8 {[%emt 0:00:18]} 25. Qxb7 {[%emt 0:00:17]} Qa4 {[%emt 0:00:43]} 26. a3 {[%emt 0:01:27]} Qd1+ {[%emt 0:01:06]} 27. Kg2 {[%emt 0:02:37]} Qxd2 {[%emt 0:00:13]} 28. Qc8+ {[%emt 0:00:06]} Kh7 {[%emt 0:00:34]} 29. Qf5+ {[%emt 0:00:28]} Kg8 {[%emt 0:00:10]} 30. Qc8+ {[%emt 0:00:34]} Bf8 {[%emt 0:00:15]} 31. Qxc7 {[%emt 0:01:11]} Qxb2 {[%emt 0:00:04]} 32. Qxa7 {[%emt 0:00:35]} Bxa3 {[%emt 0:02:00]} 33. Qa8+ {[%emt 0:00:32]} Bf8 {[%emt 0:00:07]} 34. Qe4 {[%emt 0:00:42]} Qb4 {[%emt 0:00:29]} 35. f4 {[%emt 0:00:27]} Qd2+ {[%emt 0:01:09]} 36. Kh3 {[%emt 0:00:14]} Qd7+ {[%emt 0:00:24]} 37. Kg2 {[%emt 0:00:16]} Qa4 {[%emt 0:02:01]} 38. f5 {[%emt 0:00:38]} Qa6 {[%emt 0:00:33]} 39. h4 {[%emt 0:00:29]} Qf6 {[%emt 0:00:27]} 40. Kh3 {[%emt 0:00:25]} g6 {[%emt 0:01:06]} 41. fxg6 {[%emt 0:00:57]} fxg6 {[%emt 0:00:46]} 42. c5 {[%emt 0:01:05]} Qf1+ {[%emt 0:00:57]} 43. Kh2 {[%emt 0:01:05]} Kh7 {[%emt 0:02:28]} 44. h5 {[%emt 0:00:46]} Qf6 {[%emt 0:03:01]} 45. hxg6+ {[%emt 0:01:40]} Qxg6 {[%emt 0:00:26]} 46. Qb7+ {[%emt 0:01:47]} Qg7 {[%emt 0:00:39]} 47. Qe4+ {[%emt 0:03:02]} Qg6 {[%emt 0:00:11]} 48. Qb7+ {[%emt 0:01:44]} Qg7 {[%emt 0:00:06]} 49. Qe4+ {[%emt 0:01:47]} Qg6 {[%emt 0:03:12]} 50. Qxg6+ {[%emt 0:03:36]} Kxg6 {[%emt 0:00:00]} 51. c6 {[%emt 0:00:04]} Bd6 {[%emt 0:00:00]} 52. Kh3 {[%emt 0:00:17]} Kh5 {[%emt 0:00:00]} 53. g4+ {[%emt 0:00:57]} Kg5 {[%emt 0:00:00]} 1/2-1/2

[Event "DVM U10 2024"]
[Site "Duesseldorf"]
[Date "2024.12.28"]
[Round "6"]
[White "Özdemir, Anna Valentina"]
[Black "Möller, Lia Sofie"]
[Result "1-0"]
[ECO "B45"]
[WhiteElo "954"]
[BlackElo "829"]
[Annotator "NA"]
[PlyCount "81"]
[EventDate "2024.12.23"]
[EventType "team-tourn"]
[EventRounds "7"]
[EventCountry "GER"]
[SourceTitle "playchess.com"]
[Source "ChessBase"]
[SourceQuality "1"]
[TimeControl "3300+5"]

1. e4 {[%emt 0:00:03]} c5 {[%emt 0:00:09]} 2. Nf3 {[%emt 0:00:14]} e6 {[%emt 0:00:05]} 3. d4 {[%emt 0:00:13]} cxd4 {[%emt 0:00:13]} 4. Nxd4 {[%emt 0:00:09]} Nc6 {[%emt 0:00:10]} 5. Nxc6 {[%emt 0:00:10]} bxc6 {[%emt 0:00:10]} 6. Nc3 {[%emt 0:00:53]} Nf6 {[%emt 0:00:31]} 7. Bg5 {[%emt 0:00:23]} Be7 {[%emt 0:00:31]} 8. e5 {[%emt 0:00:59]} Nd5 {[%emt 0:00:26]} 9. Nxd5 {[%emt 0:01:19]} exd5 {[%emt 0:00:46]} 10. Bxe7 {[%emt 0:00:40]} Qxe7 {[%emt 0:00:28]} 11. Qh5 {[%emt 0:01:29]} g6 {[%emt 0:00:49]} 12. Qd1 {[%emt 0:01:30]} Qxe5+ {[%emt 0:00:06]} 13. Be2 {[%emt 0:00:10]} Rb8 {[%emt 0:00:44]} 14. b3 {[%emt 0:00:29]} Qc3+ {[%emt 0:00:20]} 15. Kf1 {[%emt 0:01:09]} O-O {[%emt 0:00:26]} 16. Rb1 {[%emt 0:01:05]} c5 {[%emt 0:01:12]} 17. Qxd5 {[%emt 0:01:20]} Qa5 {[%emt 0:01:49]} 18. Qe5 {[%emt 0:02:40]} Bb7 {[%emt 0:00:26]} 19. h4 {[%emt 0:01:33]} Qxa2 {[%emt 0:01:16]} 20. Rd1 {[%emt 0:00:44]} Bc6 {[%emt 0:00:33]} 21. h5 {[%emt 0:00:20]} Rfe8 {[%emt 0:00:34]} 22. Qf6 {[%emt 0:00:41]} Re6 {[%emt 0:00:30]} 23. Qc3 {[%emt 0:01:21]} g5 {[%emt 0:00:37]} 24. h6 {[%emt 0:00:17]} Kf8 {[%emt 0:01:42]} 25. Qh8+ {[%emt 0:00:30]} Ke7 {[%emt 0:00:51]} 26. Qxb8 {[%emt 0:00:52]} Qxc2 {[%emt 0:00:18]} 27. Re1 {[%emt 0:01:12]} Qe4 {[%emt 0:02:20]} 28. Rh2 {[%emt 0:01:38]} Qe5 {[%emt 0:03:14]} 29. Qxe5 {[%emt 0:01:45]} Rxe5 {[%emt 0:01:05]} 30. Ra1 {[%emt 0:00:52]} d5 {[%emt 0:00:57]} 31. Rxa7+ {[%emt 0:00:13]} Kf6 {[%emt 0:00:14]} 32. Rh3 {[%emt 0:00:38]} d4 {[%emt 0:01:51]} 33. Rd3 {[%emt 0:01:37]} Be4 {[%emt 0:00:08]} 34. Ra6+ {[%emt 0:00:17]} Kf5 {[%emt 0:00:36]} 35. g4+ {[%emt 0:01:34]} Kf4 {[%emt 0:00:19]} 36. Rf6+ {[%emt 0:00:12]} Bf5 {[%emt 0:01:15]} 37. Rf3+ {[%emt 0:00:18]} Kxg4 {[%emt 0:01:05]} 38. R3xf5+ {[%emt 0:00:43]} Kh4 {[%emt 0:01:04]} 39. Rxe5 {[%emt 0:00:16]} g4 {[%emt 0:00:24]} 40. Rf4 {[%emt 0:00:39]} Kh3 {[%emt 0:00:26]} 41. Rh5# {[%emt 0:01:07]} 1-0

[Event "DVM U10 2024"]
[Site "Duesseldorf"]
[Date "2024.12.28"]
[Round "6"]
[White "Zhu, Elias"]
[Black "Belyakov, Konstantin"]
[Result "0-1"]
[ECO "C11"]
[WhiteElo "934"]
[BlackElo "1251"]
[Annotator "NA RC"]
[PlyCount "80"]
[EventDate "2024.12.23"]
[EventType "team-tourn"]
[EventRounds "7"]
[EventCountry "GER"]
[SourceTitle "playchess.com"]
[Source "ChessBase"]
[SourceQuality "1"]
[TimeControl "3300+5"]

1. e4 {[%emt 0:00:01]} e6 {[%emt 0:00:05]} 2. d4 {[%emt 0:00:05]} d5 {[%emt 0:00:03]} 3. Nc3 {[%emt 0:00:17]} Nf6 {[%emt 0:00:05]} 4. e5 {[%emt 0:01:08]} Nfd7 {[%emt 0:00:06]} 5. a3 {[%emt 0:01:21]} c5 {[%emt 0:00:06]} 6. Nf3 {[%emt 0:00:12]} Nc6 {[%emt 0:00:08]} 7. Be3 {[%emt 0:00:18]} Qb6 {[%emt 0:00:22]} 8. Na4 {[%emt 0:01:06]} Qa5+ {[%emt 0:00:17]} 9. Nc3 {[%emt 0:00:10]} cxd4 {[%emt 0:00:38]} 10. Nxd4 {[%emt 0:00:28]} Nxd4 {[%emt 0:00:45]} 11. Bxd4 {[%emt 0:00:10]} Qc7 {[%emt 0:00:17]} 12. f4 {[%emt 0:00:13]} Bc5 {[%emt 0:00:06]} 13. Be2 {[%emt 0:00:32]} a6 {[%emt 0:00:12]} 14. O-O {[%emt 0:00:11]} O-O {[%emt 0:00:11]} 15. Kh1 {[%emt 0:00:31]} Bxd4 {[%emt 0:00:50]} 16. Qxd4 {[%emt 0:00:12]} Qb6 {[%emt 0:00:23]} 17. Qxb6 {[%emt 0:00:49]} Nxb6 {[%emt 0:00:07]} 18. Bd3 {[%emt 0:00:14]} g6 {[%emt 0:00:27]} 19. a4 {[%emt 0:02:33]} a5 {[%emt 0:00:45]} 20. Nb5 {[%emt 0:00:15]} Bd7 {[%emt 0:00:23]} 21. Nd6 {[%emt 0:00:19]} Rab8 {[%emt 0:01:42]} 22. Rf3 {[%emt 0:00:11]} Nxa4 {[%emt 0:00:29]} 23. b3 {[%emt 0:00:54]} Nc5 {[%emt 0:00:45]} 24. Rxa5 {[%emt 0:00:33]} Nxd3 {[%emt 0:00:42]} 25. Rxd3 {[%emt 0:00:18]} Bc6 {[%emt 0:00:27]} 26. c4 {[%emt 0:00:23]} Ra8 {[%emt 0:00:23]} 27. Rxa8 {[%emt 0:00:25]} Rxa8 {[%emt 0:00:07]} 28. h3 {[%emt 0:00:06]} Ra2 {[%emt 0:01:09]} 29. g4 {[%emt 0:00:57]} dxc4+ {[%emt 0:00:00]} 30. Kg1 {[%emt 0:01:59]} cxd3 {[%emt 0:00:07]} 31. Nc4 {[%emt 0:01:57]} d2 {[%emt 0:00:12]} 32. Ne3 {[%emt 0:00:46]} Ra1+ {[%emt 0:00:13]} 33. Kf2 {[%emt 0:00:03]} d1=Q {[%emt 0:00:23]} 34. Nxd1 {[%emt 0:00:21]} Rxd1 {[%emt 0:00:06]} 35. Kg3 {[%emt 0:00:07]} Rd3+ {[%emt 0:00:07]} 36. Kh4 {[%emt 0:00:11]} Rxb3 {[%emt 0:00:07]} 37. g5 {[%emt 0:00:35]} Bg2 {[%emt 0:00:25]} 38. f5 {[%emt 0:00:28]} Rxh3+ {[%emt 0:00:11]} 39. Kg4 {[%emt 0:00:10]} gxf5+ {[%emt 0:00:11]} 40. Kf4 {[%emt 0:00:12]} Rf3# {[%emt 0:00:10]} 0-1

[Event "DVM U10 2024"]
[Site "Duesseldorf"]
[Date "2024.12.28"]
[Round "6"]
[White "Najjar, Anton"]
[Black "Baskurt, Ayaz"]
[Result "1/2-1/2"]
[ECO "D20"]
[WhiteElo "933"]
[BlackElo "903"]
[Annotator "NA RC"]
[PlyCount "49"]
[EventDate "2024.12.23"]
[EventType "team-tourn"]
[EventRounds "7"]
[EventCountry "GER"]
[SourceTitle "playchess.com"]
[Source "ChessBase"]
[SourceQuality "1"]
[TimeControl "3300+5"]

1. e4 {[%emt 0:00:01]} c6 {[%emt 0:00:13]} 2. d4 {[%emt 0:00:06]} d5 {[%emt 0:00:05]} 3. exd5 {[%emt 0:00:19]} cxd5 {[%emt 0:00:14]} 4. c4 {[%emt 0:00:17]} dxc4 {[%emt 0:00:40]} 5. Bxc4 {[%emt 0:00:16]} Bf5 {[%emt 0:00:07]} 6. Nc3 {[%emt 0:01:51]} e6 {[%emt 0:00:43]} 7. Bf4 {[%emt 0:01:15]} Bb4 {[%emt 0:00:16]} 8. Qa4+ {[%emt 0:01:04]} Nc6 {[%emt 0:00:21]} 9. Bb5 {[%emt 0:00:32]} Nge7 {[%emt 0:00:19]} 10. Nf3 {[%emt 0:01:08]} O-O {[%emt 0:01:46]} 11. O-O {[%emt 0:00:42]} Nxd4 {[%emt 0:01:48]} 12. Qxb4 {[%emt 0:02:21]} Nc2 {[%emt 0:01:45]} 13. Qc5 {[%emt 0:00:00]} Nxa1 {[%emt 0:00:43]} 14. Bd6 {[%emt 0:00:10]} Re8 {[%emt 0:00:38]} 15. Bxe8 {[%emt 0:00:21]} Qxe8 {[%emt 0:00:10]} 16. Bxe7 {[%emt 0:01:23]} Nc2 {[%emt 0:00:29]} 17. Bg5 {[%emt 0:00:00]} b6 {[%emt 0:00:46]} 18. Qd6 {[%emt 0:00:44]} f6 {[%emt 0:03:08]} 19. Bf4 {[%emt 0:01:45]} Rd8 {[%emt 0:00:33]} 20. Qc7 {[%emt 0:01:27]} Rd7 {[%emt 0:01:36]} 21. Qc4 {[%emt 0:00:57]} Bd3 {[%emt 0:01:50]} 22. Qb3 {[%emt 0:00:54]} Bxf1 {[%emt 0:00:44]} 23. Qxc2 {[%emt 0:00:59]} Bd3 {[%emt 0:01:52]} 24. Qd1 {[%emt 0:02:13]} Be4 {[%emt 0:01:32]} 25. Qe1 {[%emt 0:04:09]} 1/2-1/2

[Event "DVM U10 2024"]
[Site "Duesseldorf"]
[Date "2024.12.28"]
[Round "6"]
[White "Seitov, Adela"]
[Black "Aslanov, Kamran"]
[Result "1-0"]
[ECO "C53"]
[WhiteElo "911"]
[BlackElo "1451"]
[Annotator "NA RC"]
[PlyCount "63"]
[EventDate "2024.12.23"]
[EventType "team-tourn"]
[EventRounds "7"]
[EventCountry "GER"]
[SourceTitle "playchess.com"]
[Source "ChessBase"]
[SourceQuality "1"]
[TimeControl "3300+5"]

1. e4 {[%emt 0:00:03]} e5 {[%emt 0:00:05]} 2. Nf3 {[%emt 0:00:06]} Nc6 {[%emt 0:00:05]} 3. Bc4 {[%emt 0:00:07]} Bc5 {[%emt 0:00:04]} 4. c3 {[%emt 0:00:13]} d6 {[%emt 0:00:31]} 5. d4 {[%emt 0:00:07]} exd4 {[%emt 0:01:31]} 6. cxd4 {[%emt 0:00:12]} Bb6 {[%emt 0:00:22]} 7. Be3 {[%emt 0:00:46]} Bg4 {[%emt 0:00:37]} 8. Nbd2 {[%emt 0:00:12]} Nxd4 {[%emt 0:01:33]} 9. Bxd4 {[%emt 0:00:18]} Bxd4 {[%emt 0:00:20]} 10. h3 {[%emt 0:00:08]} Bxf3 {[%emt 0:01:14]} 11. Qxf3 {[%emt 0:00:20]} Bf6 {[%emt 0:00:21]} 12. g4 {[%emt 0:00:27]} Ne7 {[%emt 0:00:39]} 13. g5 {[%emt 0:00:36]} Bxg5 {[%emt 0:03:25]} 14. Qxf7+ {[%emt 0:00:36]} Kd7 {[%emt 0:00:10]} 15. Qe6+ {[%emt 0:00:18]} Ke8 {[%emt 0:00:28]} 16. Qf7+ {[%emt 0:00:25]} Kd7 {[%emt 0:00:27]} 17. Be6+ {[%emt 0:00:07]} Kc6 {[%emt 0:01:15]} 18. Rc1+ {[%emt 0:00:09]} Kb6 {[%emt 0:01:12]} 19. Nc4+ {[%emt 0:00:26]} Ka6 {[%emt 0:00:15]} 20. Rc3 {[%emt 0:01:25]} b6 {[%emt 0:00:43]} 21. Ra3+ {[%emt 0:01:36]} Kb7 {[%emt 0:00:41]} 22. Na5+ {[%emt 0:00:25]} Kb8 {[%emt 0:01:43]} 23. h4 {[%emt 0:01:07]} Bf6 {[%emt 0:03:06]} 24. Qh5 {[%emt 0:00:31]} Qe8 {[%emt 0:04:01]} 25. Qf3 {[%emt 0:00:13]} Rf8 {[%emt 0:04:35]} 26. e5 {[%emt 0:00:22]} c6 {[%emt 0:01:00]} 27. exd6 {[%emt 0:00:41]} Bxb2 {[%emt 0:01:51]} 28. d7 {[%emt 0:01:27]} Qd8 {[%emt 0:02:03]} 29. Nxc6+ {[%emt 0:01:18]} Nxc6 {[%emt 0:00:26]} 30. Qxc6 {[%emt 0:00:35]} Bxa3 {[%emt 0:00:43]} 31. Bd5 {[%emt 0:00:37]} Qc7 {[%emt 0:01:37]} 32. Qxa8# {[%emt 0:00:10]} 1-0

[Event "DVM U10 2024"]
[Site "Duesseldorf"]
[Date "2024.12.28"]
[Round "6"]
[White "Sengupta, Arjun"]
[Black "Widlitzek, Philipp"]
[Result "1-0"]
[ECO "B11"]
[WhiteElo "858"]
[BlackElo "860"]
[Annotator "NA RC"]
[PlyCount "117"]
[EventDate "2024.12.23"]
[EventType "team-tourn"]
[EventRounds "7"]
[EventCountry "GER"]
[SourceTitle "playchess.com"]
[Source "ChessBase"]
[SourceQuality "1"]
[TimeControl "3300+5"]

1. e4 {[%emt 0:00:01]} c6 {[%emt 0:00:07]} 2. Nc3 {[%emt 0:00:20]} d5 {[%emt 0:00:07]} 3. d3 {[%emt 0:00:22]} dxe4 {[%emt 0:01:32]} 4. Nxe4 {[%emt 0:00:21]} Nf6 {[%emt 0:00:25]} 5. Nxf6+ {[%emt 0:00:14]} exf6 {[%emt 0:01:16]} 6. Be3 {[%emt 0:00:17]} Bd6 {[%emt 0:01:04]} 7. Nf3 {[%emt 0:00:07]} O-O {[%emt 0:01:05]} 8. d4 {[%emt 0:00:06]} Bf5 {[%emt 0:01:37]} 9. Bd3 {[%emt 0:00:08]} Bxd3 {[%emt 0:01:46]} 10. cxd3 {[%emt 0:00:07]} Qa5+ {[%emt 0:01:07]} 11. Bd2 {[%emt 0:00:13]} Re8+ {[%emt 0:00:56]} 12. Kf1 {[%emt 0:00:20]} Qb5 {[%emt 0:01:03]} 13. Rb1 {[%emt 0:00:25]} Qxd3+ {[%emt 0:01:45]} 14. Kg1 {[%emt 0:00:07]} c5 {[%emt 0:01:33]} 15. Be3 {[%emt 0:00:45]} Qxd1+ {[%emt 0:00:09]} 16. Rxd1 {[%emt 0:00:11]} Nc6 {[%emt 0:01:04]} 17. g3 {[%emt 0:00:14]} cxd4 {[%emt 0:01:06]} 18. Bxd4 {[%emt 0:00:20]} Nxd4 {[%emt 0:00:13]} 19. Nxd4 {[%emt 0:00:09]} Rad8 {[%emt 0:00:37]} 20. Kg2 {[%emt 0:00:08]} Bc5 {[%emt 0:00:29]} 21. Nb3 {[%emt 0:00:26]} Bb6 {[%emt 0:00:41]} 22. Rxd8 {[%emt 0:00:25]} Rxd8 {[%emt 0:00:07]} 23. Re1 {[%emt 0:00:08]} g5 {[%emt 0:00:16]} 24. Re7 {[%emt 0:00:19]} Rb8 {[%emt 0:01:02]} 25. Kh3 {[%emt 0:00:21]} Kg7 {[%emt 0:00:11]} 26. f4 {[%emt 0:00:21]} gxf4 {[%emt 0:00:08]} 27. gxf4 {[%emt 0:00:31]} Bd8 {[%emt 0:00:18]} 28. Rd7 {[%emt 0:00:29]} Kg6 {[%emt 0:00:22]} 29. Nd2 {[%emt 0:00:29]} Bb6 {[%emt 0:00:28]} 30. Nc4 {[%emt 0:00:19]} f5 {[%emt 0:01:10]} 31. Nxb6 {[%emt 0:00:29]} axb6 {[%emt 0:00:10]} 32. Rd6+ {[%emt 0:01:19]} f6 {[%emt 0:00:15]} 33. Rxb6 {[%emt 0:00:14]} Ra8 {[%emt 0:00:25]} 34. Rxb7 {[%emt 0:00:16]} Rxa2 {[%emt 0:00:16]} 35. b4 {[%emt 0:00:07]} Ra3+ {[%emt 0:00:07]} 36. Kg2 {[%emt 0:00:23]} Rb3 {[%emt 0:00:24]} 37. b5 {[%emt 0:00:09]} Kh5 {[%emt 0:00:19]} 38. Rxh7+ {[%emt 0:00:21]} Kg4 {[%emt 0:00:12]} 39. Rb7 {[%emt 0:00:35]} Kxf4 {[%emt 0:00:10]} 40. b6 {[%emt 0:01:35]} Ke3 {[%emt 0:00:09]} 41. h4 {[%emt 0:00:25]} Ke2 {[%emt 0:00:08]} 42. h5 {[%emt 0:00:13]} f4 {[%emt 0:00:08]} 43. Re7+ {[%emt 0:00:26]} Re3 {[%emt 0:00:09]} 44. Rxe3+ {[%emt 0:00:17]} fxe3 {[%emt 0:00:06]} 45. b7 {[%emt 0:00:12]} Kd2 {[%emt 0:00:04]} 46. b8=Q {[%emt 0:00:55]} e2 {[%emt 0:00:03]} 47. Qd8+ {[%emt 0:00:27]} Kc2 {[%emt 0:00:41]} 48. Kf2 {[%emt 0:00:18]} f5 {[%emt 0:00:19]} 49. Kxe2 {[%emt 0:00:10]} f4 {[%emt 0:00:14]} 50. h6 {[%emt 0:00:07]} Kc3 {[%emt 0:00:12]} 51. Kf3 {[%emt 0:00:15]} Kc4 {[%emt 0:00:10]} 52. Kxf4 {[%emt 0:00:24]} Kc5 {[%emt 0:00:14]} 53. Qa5+ {[%emt 0:00:03]} Kd6 {[%emt 0:00:14]} 54. Qa4 {[%emt 0:00:08]} Ke6 {[%emt 0:00:07]} 55. Kg3 {[%emt 0:00:15]} Kf6 {[%emt 0:00:17]} 56. Qd1 {[%emt 0:00:43]} Kg6 {[%emt 0:00:01]} 57. Qg1 {[%emt 0:00:17]} Kxh6 {[%emt 0:00:08]} 58. Kf4 {[%emt 0:00:17]} Kh5 {[%emt 0:00:16]} 59. Qg5# {[%emt 0:00:46]} 1-0

[Event "DVM U10 2024"]
[Site "Duesseldorf"]
[Date "2024.12.28"]
[Round "6"]
[White "Schubert, Anton"]
[Black "Pardo Lorz, Noah"]
[Result "1-0"]
[ECO "C58"]
[WhiteElo "824"]
[BlackElo "1067"]
[Annotator "NA RC"]
[PlyCount "125"]
[EventDate "2024.12.23"]
[EventType "team-tourn"]
[EventRounds "7"]
[EventCountry "GER"]
[SourceTitle "playchess.com"]
[Source "ChessBase"]
[SourceQuality "1"]
[TimeControl "3300+5"]

1. e4 {[%emt 0:00:02]} e5 {[%emt 0:00:03]} 2. Nf3 {[%emt 0:00:09]} Nc6 {[%emt 0:00:05]} 3. Bc4 {[%emt 0:00:10]} Nf6 {[%emt 0:00:07]} 4. Ng5 {[%emt 0:00:11]} d5 {[%emt 0:00:09]} 5. exd5 {[%emt 0:00:16]} Na5 {[%emt 0:00:07]} 6. d3 {[%emt 0:00:54]} Nxc4 {[%emt 0:00:09]} 7. dxc4 {[%emt 0:02:10]} Ng4 {[%emt 0:00:22]} 8. Nc3 {[%emt 0:00:30]} Nh6 {[%emt 0:00:10]} 9. O-O {[%emt 0:00:27]} f6 {[%emt 0:00:19]} 10. Ne6 {[%emt 0:00:20]} Bxe6 {[%emt 0:00:11]} 11. dxe6 {[%emt 0:00:13]} Qxd1 {[%emt 0:00:06]} 12. Rxd1 {[%emt 0:00:16]} Bd6 {[%emt 0:00:09]} 13. Nb5 {[%emt 0:01:01]} O-O-O {[%emt 0:00:19]} 14. Be3 {[%emt 0:01:13]} e4 {[%emt 0:00:08]} 15. Nxa7+ {[%emt 0:00:28]} Kb8 {[%emt 0:00:15]} 16. a4 {[%emt 0:00:42]} Nf5 {[%emt 0:00:08]} 17. Nb5 {[%emt 0:01:29]} Nxe3 {[%emt 0:00:08]} 18. fxe3 {[%emt 0:00:17]} Rhe8 {[%emt 0:00:14]} 19. Nxd6 {[%emt 0:00:41]} cxd6 {[%emt 0:00:13]} 20. Rd4 {[%emt 0:01:20]} Rxe6 {[%emt 0:00:09]} 21. c5 {[%emt 0:00:35]} d5 {[%emt 0:00:10]} 22. Rad1 {[%emt 0:00:38]} g5 {[%emt 0:00:24]} 23. Rxd5 {[%emt 0:00:31]} Rxd5 {[%emt 0:00:07]} 24. Rxd5 {[%emt 0:00:10]} h5 {[%emt 0:00:09]} 25. b4 {[%emt 0:00:26]} Ra6 {[%emt 0:00:11]} 26. b5 {[%emt 0:00:31]} Rxa4 {[%emt 0:00:06]} 27. b6 {[%emt 0:00:22]} Kc8 {[%emt 0:00:15]} 28. Rf5 {[%emt 0:00:51]} Rc4 {[%emt 0:00:11]} 29. Rxf6 {[%emt 0:00:29]} Rxc5 {[%emt 0:00:09]} 30. Rf8+ {[%emt 0:00:42]} Kd7 {[%emt 0:00:07]} 31. Rh8 {[%emt 0:00:57]} Rxc2 {[%emt 0:00:08]} 32. Rxh5 {[%emt 0:00:19]} g4 {[%emt 0:00:07]} 33. Rg5 {[%emt 0:00:26]} Rc1+ {[%emt 0:00:10]} 34. Kf2 {[%emt 0:00:14]} Rc2+ {[%emt 0:00:10]} 35. Kg3 {[%emt 0:00:18]} Re2 {[%emt 0:00:20]} 36. Rxg4 {[%emt 0:00:25]} Rxe3+ {[%emt 0:00:09]} 37. Kf4 {[%emt 0:00:26]} Re1 {[%emt 0:00:19]} 38. h4 {[%emt 0:00:15]} e3 {[%emt 0:00:08]} 39. Rg7+ {[%emt 0:00:20]} Kc6 {[%emt 0:00:09]} 40. Re7 {[%emt 0:00:25]} e2 {[%emt 0:00:20]} 41. Kf3 {[%emt 0:00:23]} Rf1+ {[%emt 0:00:06]} 42. Kxe2 {[%emt 0:00:19]} Rb1 {[%emt 0:00:08]} 43. g4 {[%emt 0:00:12]} Rb4 {[%emt 0:00:10]} 44. Kf3 {[%emt 0:00:29]} Kxb6 {[%emt 0:00:08]} 45. h5 {[%emt 0:00:25]} Rb3+ {[%emt 0:01:36]} 46. Re3 {[%emt 0:00:25]} Rxe3+ {[%emt 0:00:51]} 47. Kxe3 {[%emt 0:00:09]} Kc7 {[%emt 0:00:11]} 48. Kf4 {[%emt 0:00:09]} b5 {[%emt 0:00:17]} 49. h6 {[%emt 0:00:12]} b4 {[%emt 0:00:05]} 50. h7 {[%emt 0:00:07]} Kb6 {[%emt 0:00:14]} 51. h8=Q {[%emt 0:00:26]} Ka5 {[%emt 0:00:02]} 52. Qa1+ {[%emt 0:01:17]} Kb5 {[%emt 0:00:05]} 53. Ke4 {[%emt 0:00:42]} Kc4 {[%emt 0:00:07]} 54. Qc1+ {[%emt 0:00:16]} Kb3 {[%emt 0:00:09]} 55. Kd4 {[%emt 0:00:19]} Ka2 {[%emt 0:00:29]} 56. Qd2+ {[%emt 0:01:43]} Ka3 {[%emt 0:00:03]} 57. Kc4 {[%emt 0:00:42]} b3 {[%emt 0:00:18]} 58. Qb4+ {[%emt 0:00:36]} Ka2 {[%emt 0:01:35]} 59. Qxb3+ {[%emt 0:00:18]} Ka1 {[%emt 0:00:00]} 60. Qb8 {[%emt 0:00:43]} Ka2 {[%emt 0:00:00]} 61. Kc3 {[%emt 0:00:17]} Ka1 {[%emt 0:00:00]} 62. Kc2 {[%emt 0:00:10]} Ka2 {[%emt 0:00:06]} 63. Qa8# {[%emt 0:00:10]} 1-0